bitfinex/quotes_ETHUSD_20220215
["timestamp","ask_amount","ask_price","bid_price","bid_amount"]
[1644891106859,0.00113113,3025.8,3025.7,0.001]
[1644891108101,0.00113113,3025.8,3025.6,1.99379355]
[1644891108304,0.00113113,3025.8,3025.7,0.001]
[1644891108502,0.00113113,3025.8,3025.6,0.83730325]
[1644891108702,0.00113113,3025.8,3025.6,0.001]
[1644891108902,0.00113113,3025.8,3025.5,1.65282]
[1644891109101,0.00113113,3025.8,3025.6,0.001]
[1644891109503,0.00113113,3025.8,3025.5,0.82639]
[1644891109701,0.00113113,3025.8,3025.6,0.82642]
[1644891109902,0.00113113,3025.8,3025.6,0.82742]
[1644891110705,0.00113113,3025.8,3025.6,0.001]
[1644891111109,0.00113113,3025.8,3025.5,0.001]
[1644891111307,0.00113113,3025.8,3025.3,0.00806424]
[1644891111506,0.00113113,3025.8,3025.5,0.01057243]
[1644891112155,0.00113113,3025.8,3025.5,0.01157243]
[1644891112360,1.40286532,3025.8,3025.5,0.001]
[1644891112557,1.40173419,3025.7,3025.4,1.06823413]
[1644891112758,0.00113113,3025.8,3025.5,0.01083005]
[1644891113157,0.00113113,3025.8,3025.5,1.66370005]
[1644891113358,0.00113113,3025.8,3025.6,0.001]
[1644891113560,0.00113113,3025.8,3025.5,0.82744]
[1644891113760,0.00113113,3025.8,3025.6,0.82639]
[1644891113958,0.00113113,3025.8,3025.6,0.001]
[1644891114160,0.00113113,3025.8,3025.5,0.83727005]
[1644891114563,0.00113113,3025.8,3025.5,1.66370005]
[1644891114763,0.00113113,3025.8,3025.6,0.001]
[1644891114959,0.00113113,3025.8,3025.6,0.82742]
[1644891114960,1.40297548,3025.8,3025.6,0.82742]
[1644891115158,1.40184435,3025.7,3025.6,0.82742]
[1644891115359,0.00113113,3025.8,3025.6,0.82742]
[1644891116004,0.00113113,3025.8,3025.6,1.65382]
[1644891116203,1.40297548,3025.8,3025.7,0.001]
[1644891116410,0.00113113,3025.8,3025.7,0.001]
[1644891117003,0.00113113,3025.8,3025.6,0.001]
[1644891117205,0.00113113,3025.8,3025.5,0.82744]
[1644891117405,0.00113113,3025.8,3025.6,0.00996227]
[1644891118410,0.00113113,3025.8,3025.4,0.82647]
[1644891118708,0.00113113,3025.8,3025.5,0.00996241]
[1644891118912,0.00113113,3025.8,3025.6,0.82641]
[1644891119107,0.00113113,3025.8,3025.6,0.82741]
[1644891119755,0.00113113,3025.8,3025.6,0.001]
[1644891119951,0.00113113,3025.8,3025.5,0.86437549]
[1644891120352,0.00113113,3025.8,3025.5,0.01096241]
[1644891120552,0.00113113,3025.8,3025.5,0.00996241]
[1644891120751,0.00113113,3025.8,3025.3,0.00806424]
[1644891120953,1.40297548,3025.8,3025.3,0.00806424]
[1644891121152,1.40184435,3025.7,3025.5,0.00986785]
[1644891121454,0.00113113,3025.8,3025.5,0.00986785]
[1644891121455,1.40184435,3025.6,3025.5,0.00986785]
[1644891121652,1.40184435,3025.6,3025.5,0.01086785]
[1644891122152,0.00113113,3025.8,3025.5,0.001]
[1644891123011,0.00113113,3025.8,3025.6,0.8264]
[1644891123212,0.00113113,3025.8,3025.6,0.001]
[1644891123413,1.40297548,3025.8,3025.5,0.01086785]
[1644891123616,1.40184435,3025.7,3025.5,0.00986785]
[1644891123815,1.40184435,3025.6,3025.5,0.00986785]
[1644891124015,1.08172868,3025.8,3025.5,0.00986785]
[1644891124214,1.40184435,3025.7,3025.5,0.00986785]
[1644891124418,1.40184435,3025.7,3025.3,0.83555424]
[1644891124613,1.40184435,3025.7,3025.5,0.00987425]
[1644891125513,1.40184435,3025.7,3025.4,1.65294]
[1644891125714,1.40184435,3025.7,3025.5,0.001]
[1644891126514,1.40184435,3025.7,3025.5,0.82746]
[1644891126953,1.40184435,3025.7,3025.5,0.001]
[1644891127155,1.40184435,3025.7,3025.4,0.00987438]
[1644891127954,1.40184435,3025.7,3025.3,0.00806424]
[1644891128154,1.40184435,3025.7,3025.4,0.82648]
[1644891128554,1.40184435,3025.7,3025.4,0.83635408]
[1644891128754,1.40184435,3025.7,3025.4,0.83632408]
[1644891128955,1.40184435,3025.7,3025.5,0.82644]
[1644891129156,1.40184435,3025.7,3025.5,0.82744]
[1644891130706,1.40184435,3025.7,3025.6,0.82641]
[1644891130905,1.40184435,3025.7,3025.6,0.82741]
[1644891131305,0.00113113,3025.8,3025.6,0.82741]
[1644891131505,0.00113113,3025.8,3025.6,1.65376]
[1644891131704,1.40297548,3025.8,3025.7,0.001]
[1644891132007,1.40297548,3025.8,3025.7,0.82736]
[1644891132210,0.00113113,3025.8,3025.7,0.001]
[1644891132407,0.00113113,3025.8,3025.6,0.82735]
[1644891132606,0.00113113,3025.8,3025.6,0.001]
[1644891132807,0.82761733,3025.8,3025.4,0.82647]
[1644891133007,1.40184435,3025.7,3025.5,0.00954468]
[1644891133206,1.40184435,3025.6,3025.5,0.01054468]
[1644891133607,0.00113113,3025.8,3025.5,0.01054468]
[1644891133808,1.40184435,3025.6,3025.5,0.01054468]
[1644891134009,0.00113113,3025.8,3025.5,0.001]
[1644891134257,0.00113113,3025.8,3025.5,0.01054481]
[1644891134258,0.82762253,3025.8,3025.5,0.01054481]
[1644891134458,1.40184435,3025.7,3025.5,0.00954481]
[1644891134664,0.00113113,3025.8,3025.5,0.00954481]
[1644891134665,1.40184435,3025.6,3025.5,0.00954481]
[1644891134863,0.00113113,3025.8,3025.5,0.00954481]
[1644891135065,0.00113113,3025.8,3025.5,0.83599481]
[1644891135257,0.00113113,3025.8,3025.5,0.82645]
[1644891135459,1.40297548,3025.8,3025.5,0.01055591]
[1644891135665,2.40297548,3025.8,3025.5,0.00955591]
[1644891135859,1.40184435,3025.7,3025.5,0.00955591]
[1644891136058,1.40184435,3025.6,3025.5,0.00955591]
[1644891136258,0.00113113,3025.8,3025.5,0.00955591]
[1644891136459,0.00113113,3025.8,3025.3,0.00806424]
[1644891136659,0.00113113,3025.8,3025.4,0.00955619]
[1644891136858,0.9058126,3025.5,3025.4,0.00955619]
[1644891137058,1.40297548,3025.8,3025.4,0.00955619]
[1644891137261,1.40184435,3025.7,3025.4,1.66244619]
[1644891137559,1.40184435,3025.6,3025.5,0.001]
[1644891137758,1.40184435,3025.6,3025.5,0.82643]
[1644891138009,0.00113113,3025.8,3025.5,0.82643]
[1644891138010,0.00113113,3025.8,3025.5,0.82743]
[1644891138208,0.00113113,3025.8,3025.6,0.82642]
[1644891138405,0.00113113,3025.8,3025.6,0.001]
[1644891138608,0.92837407,3025.6,3025.4,0.00960402]
[1644891138805,1.40184435,3025.5,3025.3,0.00906424]
[1644891139408,1.40184435,3025.5,3025.4,0.82647]
[1644891139608,1.40184435,3025.5,3025.4,0.001]
[1644891139810,1.40184435,3025.5,3025.1,0.00906424]
[1644891140408,1.40184435,3025.5,3025.3,0.00960355]
[1644891140607,1.40184435,3025.5,3025.3,0.84415779]
[1644891140808,1.40184435,3025.5,3025.3,0.83952689]
[1644891141307,1.40184435,3025.5,3025.3,0.00906424]
[1644891141508,1.40184435,3025.5,3025.3,0.00806424]
[1644891142556,1.40184435,3025.5,3025.3,0.83455424]
[1644891142755,1.40184435,3025.5,3025.4,0.82642]
[1644891143054,1.40184435,3025.5,3025.4,0.001]
[1644891143255,1.40184435,3025.5,3025.3,0.83555424]
[1644891144055,1.40184435,3025.5,3025.3,1.66204424]
[1644891144356,1.40184435,3025.5,3025.4,0.001]
[1644891145357,1.40184435,3025.5,3025.3,0.00906424]
[1644891146811,1.40184435,3025.5,3025.2,0.001]
[1644891147008,1.40184435,3025.5,3025.2,0.00906424]
[1644891147409,1.40184435,3025.5,3025.2,0.00806424]
[1644891147612,2.22844435,3025.5,3025.1,0.00993063]
[1644891147909,1.40184435,3025.4,3025.1,0.00993063]
[1644891148308,2.87784435,3025.4,3025.1,0.00993063]
[1644891148510,1.40184435,3025.3,3024.7,0.00806424]
[1644891148810,1.06884634,3024.8,3024.7,0.83472424]
[1644891149010,2.47107787,3024.8,3024.7,0.82766]
[1644891149259,2.47107787,3024.8,3024.7,0.83573703]
[1644891150058,1.40223153,3024.8,3024.7,0.83573703]
[1644891150263,1.40223153,3025.1,3024.7,0.00907703]
[1644891150455,1.40223153,3025.1,3024.8,0.00807703]
[1644891151056,1.40223153,3025.1,3024.8,0.01794916]
[1644891151457,1.40223153,3025.1,3024.8,0.01894916]
[1644891151756,1.40223153,3025.0,3024.8,0.83647213]
[1644891151956,1.476,3025.4,3024.9,0.00807703]
[1644891152159,1.40222186,3025.3,3024.9,0.00807703]
[1644891152357,2.40222186,3025.3,3024.9,0.00807703]
[1644891152557,1.40222186,3025.2,3024.9,0.00807703]
[1644891152761,1.40222186,3025.2,3024.9,0.83564703]
[1644891153001,1.40222186,3025.1,3024.9,0.82657]
[1644891153202,1.0,3025.4,3025.0,0.00807703]
[1644891153403,1.1839,3025.5,3024.8,0.001]
[1644891153404,1.11385019,3025.1,3024.8,0.001]
[1644891153604,1.11385019,3025.1,3025.0,0.8266]
[1644891153804,1.11385019,3025.1,3025.0,0.83467703]
[1644891154005,1.40214274,3025.1,3025.0,0.83467703]
[1644891154204,1.0,3025.3,3025.0,0.83467703]
[1644891154405,1.40214274,3025.2,3025.1,0.00807703]
[1644891154808,1.40214274,3025.3,3025.1,0.00807703]
[1644891155008,1.40214274,3025.2,3025.1,0.00807703]
[1644891155206,1.40214274,3025.2,3025.1,2.48769703]
[1644891155515,1.40214274,3025.6,3025.1,2.48869703]
[1644891155708,1.40214274,3025.5,3025.2,1.66199703]
[1644891155908,1.40214274,3025.4,3025.3,0.001]
[1644891156956,1.40214274,3025.4,3025.3,0.82746]
[1644891157756,0.00113113,3025.8,3025.4,0.8265]
[1644891157958,0.00113113,3025.8,3025.4,0.001]
[1644891158161,0.00113113,3025.8,3025.2,0.00907703]
[1644891158162,1.40314912,3025.8,3025.2,0.00907703]
[1644891158359,2.40314912,3025.8,3025.2,0.00907703]
[1644891158557,1.09609184,3025.5,3025.2,0.00907703]
[1644891158758,1.40201799,3025.4,3025.2,0.00907703]
[1644891158958,0.82766763,3025.8,3025.2,1.654]
[1644891159157,1.40199977,3025.7,3025.3,0.001]
[1644891160157,1.40199977,3025.7,3025.3,1.65396]
[1644891160358,1.40199977,3025.7,3025.4,0.001]
[1644891160616,2.40199977,3025.7,3025.2,0.0080757]
[1644891160818,1.40199977,3025.6,3025.2,0.0080757]
[1644891161413,1.40199977,3025.5,3025.2,0.0090757]
[1644891161616,1.40199977,3025.4,3025.2,0.0090757]
[1644891161813,0.97516251,3025.3,3025.2,0.0090757]
[1644891162014,2.37716228,3025.3,3025.2,0.0090757]
[1644891162214,2.37716228,3025.3,3025.1,0.009875]
[1644891162414,1.40199977,3025.2,3025.1,0.009875]
[1644891162816,1.40199977,3025.2,3025.0,0.0090757]
[1644891163016,1.40199977,3025.2,3024.9,0.82657]
[1644891163214,1.40199977,3025.2,3025.0,0.01795105]
[1644891164014,1.40199977,3025.2,3024.7,0.0090757]
[1644891164253,1.40199977,3025.2,3024.8,0.82659]
[1644891164454,1.40199977,3025.2,3024.9,0.01795118]
[1644891164852,3.97516251,3025.3,3024.9,0.01795118]
[1644891164853,1.40215689,3025.1,3024.9,0.01795118]
[1644891165052,1.40215689,3025.2,3024.9,0.01795118]
[1644891165254,1.40215689,3025.1,3024.9,0.0080757]
[1644891165454,1.40215689,3025.0,3024.9,0.0080757]
[1644891165656,1.40215689,3025.2,3024.9,0.0080757]
[1644891165956,1.40215689,3025.2,3024.8,0.00987575]
[1644891166353,1.40215689,3025.2,3024.9,0.8266]
[1644891166558,1.40215689,3025.2,3025.0,0.0080757]
[1644891166756,1.40215689,3025.2,3025.0,0.0090757]
[1644891168127,1.40215689,3025.2,3025.0,0.8356357]
[1644891169024,1.40215689,3025.2,3025.0,0.0090757]
[1644891169226,1.40215689,3025.2,3025.0,0.0080757]
[1644891170124,1.40215689,3025.2,3024.9,0.82659]
[1644891170424,1.40215689,3025.2,3025.0,0.0080757]
[1644891170625,1.40215689,3025.2,3025.0,0.8346357]
[1644891171229,1.40215689,3025.2,3025.1,0.82653]
[1644891171428,1.40215689,3025.2,3025.1,0.82753]
[1644891173062,1.40128573,3025.2,3025.1,0.82753]
[1644891184806,1.40128573,3025.2,3025.1,0.001]
[1644891185006,1.40128573,3025.2,3025.0,1.67276854]
[1644891185211,1.40128573,3025.2,3025.1,0.001]
[1644891185608,1.40128573,3025.2,3025.0,0.8356357]
[1644891186008,1.40128573,3025.2,3025.0,0.84619854]
[1644891186212,1.40128573,3025.2,3025.1,0.82655]
[1644891186407,1.40128573,3025.2,3025.1,0.82755]
[1644891191611,3.0,3025.3,3025.1,2.48049]
[1644891191814,3.0,3025.3,3025.2,0.001]
[1644891192010,3.0,3025.3,3025.2,0.82743]
[1644891192212,3.0,3025.3,3025.2,1.77313339]
[1644891194464,4.4008399,3025.3,3025.2,1.77313339]
[1644891194760,2.99885395,3025.3,3025.2,1.77313339]
[1644891196160,4.4008324,3025.3,3025.2,1.77313339]
[1644891201612,2.99885395,3025.3,3025.2,1.77313339]
[1644891204364,4.40083338,3025.3,3025.2,0.82756]
[1644891204568,4.87683338,3025.3,3024.6,0.04109025]
[1644891204768,0.8267883,3025.1,3024.6,0.04109025]
[1644891204966,0.8267883,3025.1,3024.4,0.01189528]
[1644891204967,1.87797943,3025.0,3024.4,0.01189528]
[1644891205168,1.87797943,3024.9,3024.4,0.01189528]
[1644891205366,2.91830786,3024.8,3024.4,0.01189528]
[1644891205616,1.40197943,3024.7,3024.4,0.01189528]
[1644891206616,0.1653,3025.0,3024.4,0.01189528]
[1644891206617,1.40197943,3024.9,3024.4,0.01189528]
[1644891206817,2.22874843,3024.9,3024.4,0.01189528]
[1644891207016,1.40197943,3024.8,3024.4,0.01189528]
[1644891207219,1.40197943,3024.7,3024.4,0.01189528]
[1644891207416,0.1653,3025.0,3024.4,0.01189528]
[1644891207617,0.96354476,3024.6,3024.4,0.01189528]
[1644891208717,0.96354476,3024.6,3024.4,0.83862528]
[1644891208918,0.96354476,3024.6,3024.4,2.49204528]
[1644891209122,0.476,3025.1,3024.4,0.83860528]
[1644891209363,1.40224051,3025.0,3024.4,0.83860528]
[1644891209863,1.40224051,3025.0,3024.5,0.82666]
[1644891210061,0.96106508,3024.8,3024.6,1.6533]
[1644891210265,0.96106508,3024.8,3024.7,0.001]
[1644891210661,2.36330272,3024.8,3024.7,0.001]
[1644891211062,2.36330272,3024.8,3024.5,0.82666]
[1644891211264,1.40223764,3024.7,3024.5,1.65335]
[1644891211463,0.96106508,3024.8,3024.6,0.001]
[1644891212265,1.40227059,3024.7,3024.6,0.001]
[1644891212865,1.40227059,3024.7,3024.4,0.83961528]
[1644891213521,1.40227059,3024.7,3024.4,0.0233697]
[1644891213711,1.40227059,3024.7,3024.4,0.0223697]
[1644891214511,1.40227059,3024.7,3024.4,0.01189528]
[1644891214710,1.40227059,3024.7,3024.4,0.0223697]
[1644891215210,2.40227059,3024.7,3024.4,0.0223697]
[1644891215413,1.40227059,3024.6,3024.4,0.0223697]
[1644891215612,2.22908979,3024.6,3024.4,0.0223697]
[1644891215812,1.40227059,3024.5,3024.4,0.01189528]
[1644891216966,1.01010234,3024.2,3023.8,0.001]
[1644891218167,1.01010234,3024.2,3023.8,0.82786]
[1644891218363,1.01010234,3024.2,3023.8,0.83832745]
[1644891219164,1.01010234,3024.2,3023.8,0.01146745]
[1644891219364,1.01010234,3024.2,3023.8,0.001]
[1644891219664,1.01010234,3024.2,3023.7,5.71572745]
[1644891220069,1.01010234,3024.2,3023.8,0.00799871]
[1644891220270,1.01010234,3024.2,3023.7,5.67372616]
[1644891220713,1.01010234,3024.2,3023.7,3.2736]
[1644891221513,1.01010234,3024.2,3023.6,0.82691]
[1644891221715,1.01010234,3024.2,3023.3,6.04226352]
[1644891221716,1.40269827,3024.1,3023.3,6.04226352]
[1644891221921,2.40269827,3024.1,3023.3,4.38842352]
[1644891222114,1.40269827,3024.0,3023.3,0.00272352]
[1644891222314,1.70269827,3024.0,3023.3,0.00272352]
[1644891222515,1.3,3024.0,3023.3,0.00272352]
[1644891222914,0.3,3024.0,3023.3,0.00272352]
[1644891223114,0.3,3024.0,3023.5,0.01034601]
[1644891223314,1.82703,3024.1,3023.5,0.01034601]
[1644891223315,2.12703,3024.1,3023.5,0.01034601]
[1644891223516,0.8270298,3023.9,3023.5,0.01034601]
[1644891224117,1.0,3024.1,3023.4,0.82696]
[1644891224367,2.2498,3024.2,3023.5,0.01034586]
[1644891224568,2.79797034,3024.1,3023.5,0.01034586]
[1644891224768,1.0952152,3024.1,3023.5,0.01034586]
[1644891225067,0.98547172,3023.6,3023.5,0.01034586]
[1644891225271,0.98547172,3023.6,3023.5,0.001]
[1644891226667,0.98547172,3023.6,3023.5,0.82795]
[1644891227872,0.98547172,3023.6,3023.5,0.001]
[1644891228319,0.98547172,3023.6,3023.4,0.01113312]
[1644891228716,0.98547172,3023.6,3023.4,0.01013312]
[1644891229016,0.98547172,3023.6,3023.3,0.00544704]
[1644891229216,0.98547172,3023.6,3023.3,0.8425803]
[1644891229618,0.98547172,3023.6,3023.4,0.82698]
[1644891229816,0.98547172,3023.6,3023.4,0.82798]
[1644891230419,0.98547172,3023.6,3023.4,0.001]
[1644891232262,0.98547172,3023.6,3023.3,0.84260976]
[1644891232462,0.98547172,3023.6,3023.1,0.01089408]
[1644891232463,3.25,3023.5,3023.1,0.01089408]
[1644891232862,1.0,3023.4,3023.1,0.01089408]
[1644891233063,1.3,3023.4,3023.1,0.01089408]
[1644891233261,1.0,3023.4,3023.1,0.01089408]
[1644891233461,2.9543952,3023.4,3023.1,0.01089408]
[1644891233661,2.05,3023.3,3022.7,0.01090272]
[1644891233861,2.87725,3023.3,3022.7,0.01090272]
[1644891234061,0.3,3023.2,3022.7,0.01090272]
[1644891234262,1.3,3023.2,3022.7,0.01090272]
[1644891234463,0.82724,3023.1,3022.7,0.01090272]
[1644891234665,1.6544745,3023.1,3022.7,0.01090272]
[1644891234864,2.4817545,3023.1,3022.7,0.01090272]
[1644891235063,3.4817545,3023.1,3022.7,0.01090272]
[1644891235262,2.6544745,3023.1,3022.7,0.01090272]
[1644891235716,2.6544745,3023.1,3022.4,0.01516816]
[1644891235717,0.82739,3022.6,3022.4,0.0368112]
[1644891235914,0.8273821,3022.7,3022.4,0.01010944]
[1644891235915,3.726,3022.5,3022.4,0.01010944]
[1644891236109,3.726,3022.5,3022.0,0.00788128]
[1644891236311,3.726,3022.5,3021.4,0.00465948]
[1644891236312,2.95,3022.3,3021.4,0.00465948]
[1644891236512,0.476,3022.2,3021.9,0.04177885]
[1644891236709,0.82766,3022.1,3021.9,0.04177885]
[1644891236911,3.7829976,3022.1,3021.9,0.04177885]
[1644891237310,3.7829976,3022.1,3021.4,0.00465948]
[1644891237511,2.9553376,3022.1,3021.4,0.00465948]
[1644891237722,2.1276576,3022.1,3021.8,0.01044459]
[1644891237912,3.25,3021.8,3021.4,0.04644412]
[1644891238112,4.07777,3021.8,3021.4,0.04644412]
[1644891238315,1.3,3021.7,3021.4,0.04644412]
[1644891238611,1.3,3021.7,3021.4,0.00465948]
[1644891238811,1.9555035,3021.7,3021.4,0.00465948]
[1644891239267,1.0,3021.8,3021.4,0.00465948]
[1644891239466,1.476,3022.1,3021.4,0.00465948]
[1644891239666,0.476,3022.1,3021.4,0.00465948]
[1644891239867,0.8275363,3021.8,3021.4,0.00465948]
[1644891240067,0.8277,3021.7,3021.4,0.00465948]
[1644891240674,1.3037,3021.7,3021.4,0.00465948]
[1644891240870,2.1313954,3021.7,3021.4,0.00465948]
[1644891241370,3.1313954,3021.7,3021.4,0.01510538]
[1644891241568,2.1313954,3021.7,3021.4,0.01510538]
[1644891241770,0.82774,3021.5,3021.4,0.01510538]
[1644891242169,0.82774,3021.5,3021.4,0.00465948]
[1644891242573,1.65541,3021.9,3021.4,0.00465948]
[1644891242574,1.0,3022.0,3021.4,0.00465948]
[1644891242772,1.2436,3022.4,3021.4,0.00465948]
[1644891243015,5.32777468,3022.7,3021.4,0.00465948]
[1644891243214,5.32777468,3022.7,3021.5,0.476]
[1644891243420,2.7955,3022.7,3021.5,0.476]
[1644891243815,2.7955,3022.7,3021.4,0.00465948]
[1644891243816,3.62859581,3022.7,3021.6,0.83786531]
[1644891244417,0.8274154,3022.4,3021.6,0.01044531]
[1644891244617,1.6549346,3022.5,3021.6,0.001]
[1644891244818,1.6549346,3022.5,3021.6,0.01044537]
[1644891244819,0.82755,3022.3,3021.6,0.01044537]
[1644891245220,0.3,3022.3,3021.6,0.01044537]
[1644891245620,0.8274673,3022.3,3021.6,0.01044537]
[1644891245820,1.1274673,3022.3,3021.4,0.00465948]
[1644891246223,2.1274673,3022.3,3021.6,0.01044526]
[1644891247066,2.1274673,3022.3,3021.4,0.00565948]
[1644891247269,2.1274673,3022.3,3021.6,0.01044526]
[1644891247270,11.01774061,3022.1,3021.6,0.01044526]
[1644891247467,0.00320785,3021.3,3020.9,0.04179148]
[1644891247670,0.8279,3021.2,3020.9,0.04179148]
[1644891247867,1.1279,3021.2,3020.9,0.04179148]
[1644891248066,0.8279,3021.2,3020.9,0.04179148]
[1644891248266,0.8279,3021.2,3020.5,0.00432776]
[1644891248267,1.1279,3021.2,3020.5,0.00432776]
[1644891248867,2.13193,3021.1,3020.5,0.00432776]
[1644891249268,3.43193,3021.1,3020.5,0.00432776]
[1644891249469,0.82792,3021.0,3020.5,0.00432776]
[1644891249668,0.476,3020.9,3020.6,0.00874487]
[1644891249869,1.604,3020.9,3020.6,0.00874487]
[1644891250517,0.828,3020.8,3020.6,0.00874487]
[1644891250718,0.828,3020.8,3020.5,0.00432776]
[1644891250918,1.828,3020.8,3020.6,0.00874501]
[1644891251118,2.656004,3020.8,3020.6,0.00874501]
[1644891251919,2.656004,3020.8,3020.5,0.00432776]
[1644891252120,2.656004,3020.8,3020.5,0.01477611]
[1644891252722,3.484034,3020.8,3020.5,0.01477611]
[1644891252921,2.656004,3020.8,3020.5,0.01477611]
[1644891253121,2.656004,3020.8,3020.5,0.00432776]
[1644891253420,2.656004,3020.8,3020.5,0.01443778]
[1644891254261,2.656004,3020.8,3020.5,0.00432776]
[1644891254465,2.656004,3020.8,3020.5,0.01443778]
[1644891255464,2.656004,3020.8,3020.5,0.00432776]
[1644891255665,2.656004,3020.8,3020.5,0.01443778]
[1644891256666,0.82804,3020.6,3020.5,0.00432776]
[1644891256867,1.60404,3020.6,3020.5,0.00432776]
[1644891257066,1.60404,3020.6,3020.5,0.01443778]
[1644891257867,1.60404,3020.6,3020.5,0.00432776]
[1644891258315,2.60404,3020.6,3020.5,0.00432776]
[1644891258522,1.60404,3020.6,3020.5,0.00432776]
[1644891258716,2.60404,3020.6,3020.5,0.00432776]
[1644891262066,2.30404,3020.6,3020.5,0.00432776]
[1644891262267,0.828004,3020.8,3020.5,0.00432776]
[1644891262966,0.828004,3020.8,3020.5,0.01447981]
[1644891263468,2.015919,3021.0,3020.5,0.01447981]
[1644891263668,1.0,3020.9,3020.5,0.01447981]
[1644891263869,0.3,3020.9,3020.5,0.00432776]
[1644891264272,1.0,3021.2,3020.6,0.01015176]
[1644891264273,0.8279,3021.1,3020.6,0.01015176]
[1644891264472,0.8278258,3021.1,3020.6,0.01015176]
[1644891265071,0.8278258,3021.1,3020.5,0.00432776]
[1644891265271,3.43638104,3021.3,3020.7,0.01015251]
[1644891265525,0.82786,3021.2,3020.7,0.01015251]
[1644891265736,0.8278178,3021.0,3020.7,0.01015251]
[1644891266323,0.8278178,3021.0,3020.5,0.00432776]
[1644891266527,0.3,3020.9,3020.7,0.01015251]
[1644891266722,0.8278178,3021.0,3020.7,0.01015251]
[1644891267124,4.7,3020.8,3018.7,9.1056005]
[1644891267325,0.01260462,3019.3,3018.2,0.40582672]
[1644891267529,0.26266538,3019.2,3018.2,0.1441346]
[1644891267725,0.26266538,3019.2,3018.2,0.03830788]
[1644891268125,0.87932595,3018.9,3018.2,0.03830788]
[1644891268327,1.6570707,3018.8,3018.2,0.03830788]
[1644891268529,0.8285307,3018.8,3018.2,0.03830788]
[1644891268726,1.8285307,3018.8,3018.2,0.03830788]
[1644891268927,1.6570614,3018.9,3018.3,0.0101898]
[1644891268928,6.423,3018.7,3018.3,0.0101898]
[1644891269129,1.30451,3018.6,3018.3,0.0101898]
[1644891269367,0.82862,3018.5,3018.3,0.0101898]
[1644891269571,0.476,3018.4,3018.3,0.0101898]
[1644891269967,1.476,3018.4,3018.3,0.00963552]
[1644891270167,0.476,3018.4,3018.3,0.03830788]
[1644891270367,1.476,3018.4,3018.3,0.03830788]
[1644891270568,0.476,3018.4,3018.3,0.03830788]
[1644891272373,0.776,3018.4,3017.9,0.02408772]
[1644891272570,1.0785226,3018.3,3018.2,0.01025513]
[1644891272769,1.5545226,3018.3,3018.2,0.01025513]
[1644891273017,2.5545226,3018.3,3018.2,0.01025513]
[1644891273619,2.5545226,3018.3,3017.9,0.02408772]
[1644891273820,2.5545226,3018.3,3018.1,0.01025542]
[1644891274220,1.5545226,3018.3,3018.1,0.01025542]
[1644891274521,0.83651,3018.6,3018.1,0.01025542]
[1644891274522,0.258,3018.6,3018.1,0.01025542]
[1644891274726,0.258,3018.6,3017.9,0.02408772]
[1644891274921,0.258,3018.6,3018.0,0.01025556]
[1644891275123,1.0865,3018.6,3018.0,0.0295266]
[1644891275322,0.828406,3018.5,3018.0,0.0295266]
[1644891275722,1.828406,3018.5,3018.0,0.0295266]
[1644891275923,1.828406,3018.5,3018.0,0.01927104]
[1644891276123,0.476,3018.4,3018.1,0.0101712]
[1644891276761,1.3044812,3018.4,3018.1,0.0101712]
[1644891276966,0.476,3018.4,3018.1,0.0101712]
[1644891277164,1.476,3018.4,3018.1,0.01927104]
[1644891277366,0.476,3018.4,3018.1,0.02944224]
[1644891277563,1.476,3018.4,3018.1,0.02944224]
[1644891277764,0.476,3018.4,3018.1,0.02944224]
[1644891278365,0.484,3018.4,3018.1,0.01927104]
[1644891278565,0.484,3018.4,3018.1,0.02944224]
[1644891279467,0.484,3018.4,3018.1,0.01927104]
[1644891279870,0.484,3018.4,3018.1,0.02945239]
[1644891280722,0.484,3018.4,3018.1,0.01927104]
[1644891281121,0.484,3018.4,3018.1,0.02945239]
[1644891281922,0.484,3018.4,3018.1,0.01927104]
[1644891282126,0.484,3018.4,3018.1,0.02945239]
[1644891283021,0.484,3018.4,3018.1,0.01927104]
[1644891283422,0.484,3018.4,3018.1,0.02945112]
[1644891284264,0.484,3018.4,3018.1,0.01927104]
[1644891284464,0.484,3018.4,3018.1,0.02798861]
[1644891285468,0.484,3018.4,3018.1,0.01927104]
[1644891285866,0.484,3018.4,3018.1,0.03676288]
[1644891286371,0.008,3018.4,3018.1,3.53676288]
[1644891286570,0.008,3018.4,3018.2,0.00877427]
[1644891286770,0.008,3018.4,3018.2,0.00777427]
[1644891286970,0.008,3018.4,3018.1,0.02027104]
[1644891286971,0.008,3018.4,3018.1,0.03075517]
[1644891287368,0.258,3018.4,3018.1,0.02975517]
[1644891288014,1.258,3018.4,3018.1,0.01927104]
[1644891288214,0.258,3018.4,3018.1,0.02797735]
[1644891288415,0.476,3018.3,3018.1,0.02797735]
[1644891288815,0.8285618,3018.2,3017.6,0.02566349]
[1644891289215,0.8285618,3018.2,3017.6,0.01285568]
[1644891289418,0.476,3018.1,3017.6,0.01285568]
[1644891289816,1.258,3018.4,3017.6,0.01285568]
[1644891289817,0.258,3018.4,3017.6,0.01285568]
[1644891290518,0.00180005,3018.2,3017.8,1.06248961]
[1644891290717,0.00180005,3018.2,3017.9,0.82937]
[1644891291317,0.00180005,3018.2,3017.9,0.01385568]
[1644891291518,0.25,3018.3,3017.9,0.01285568]
[1644891291767,0.00600017,3018.2,3017.9,0.01285568]
[1644891292172,0.83457487,3018.2,3017.9,0.01285568]
[1644891292670,0.00600017,3018.2,3017.9,0.01285568]
[1644891292872,0.25,3018.3,3017.9,0.01285568]
[1644891293072,0.00600017,3018.2,3017.9,0.01285568]
[1644891294070,0.25,3018.3,3017.9,0.01285568]
[1644891294271,0.00600017,3018.2,3017.9,0.01285568]
[1644891295170,0.258,3018.3,3017.9,0.01285568]
[1644891295614,0.00600017,3018.2,3017.9,0.01285568]
[1644891296421,0.258,3018.3,3017.9,0.01285568]
[1644891296620,0.00600017,3018.2,3017.9,0.01285568]
[1644891297518,0.258,3018.3,3017.9,0.01285568]
[1644891297716,1.0865379,3018.3,3017.9,0.01285568]
[1644891297918,0.00600017,3018.2,3017.9,0.01285568]
[1644891298716,1.0865379,3018.3,3017.9,0.01285568]
[1644891298917,1.0785379,3018.3,3017.9,0.01285568]
[1644891299119,0.00600017,3018.2,3017.9,0.01285568]
[1644891299965,0.25,3018.3,3017.9,0.01285568]
[1644891300166,0.00600017,3018.2,3017.9,0.01285568]
[1644891301065,0.01400017,3018.2,3017.9,0.01285568]
[1644891301265,0.008,3018.2,3017.9,0.01285568]
[1644891301469,0.01400017,3018.2,3017.9,0.01285568]